[Event "Early-Titled-Tuesday-Blitz-March-05-2024"]
[Site "Chess.com"]
[Date "2024.03.05"]
[Round "9"]
[White "CaspiIsrael"]
[Black "BrandonJiang123456"]
[Result "1-0"]
[WhiteElo "2672"]
[BlackElo "2163"]
[TimeControl "180+1"]
[EndTime "9:45:43 PST"]
[Termination "CaspiIsrael won by resignation"]

1. e4 {[%clk 0:03:00.9]} 1... e5 {[%clk 0:01:44.9]} 2. Nc3 {[%clk 0:02:53.9]}
2... Nf6 {[%clk 0:01:41.1]} 3. g3 {[%clk 0:02:53.7]} 3... Nc6 {[%clk 0:01:40.5]}
4. Bg2 {[%clk 0:02:53.6]} 4... Bc5 {[%clk 0:01:39.8]} 5. d3 {[%clk 0:02:53.4]}
5... O-O {[%clk 0:01:40]} 6. Nge2 {[%clk 0:02:51.3]} 6... d6 {[%clk 0:01:40.4]}
7. h3 {[%clk 0:02:51.2]} 7... Be6 {[%clk 0:01:39.1]} 8. O-O {[%clk 0:02:51.4]}
8... d5 {[%clk 0:01:38.5]} 9. exd5 {[%clk 0:02:47.7]} 9... Nxd5 {[%clk
0:01:37.5]} 10. Kh2 {[%clk 0:02:47.2]} 10... f6 {[%clk 0:01:37]} 11. a3 {[%clk
0:02:47]} 11... Qd7 {[%clk 0:01:24.4]} 12. b4 {[%clk 0:02:45.3]} 12... Be7
{[%clk 0:01:24.1]} 13. Bb2 {[%clk 0:02:43]} 13... a5 {[%clk 0:01:23.5]} 14. b5
{[%clk 0:02:42.7]} 14... Nd4 {[%clk 0:01:20]} 15. Nxd4 {[%clk 0:02:42.2]} 15...
exd4 {[%clk 0:01:19.9]} 16. Nxd5 {[%clk 0:02:42.5]} 16... Bxd5 {[%clk
0:01:20.3]} 17. a4 {[%clk 0:02:40.6]} 17... Bxg2 {[%clk 0:01:18.9]} 18. Kxg2
{[%clk 0:02:41.5]} 18... Qd5+ {[%clk 0:01:18.4]} 19. Qf3 {[%clk 0:02:40.5]}
19... Qxf3+ {[%clk 0:01:15.3]} 20. Kxf3 {[%clk 0:02:41.4]} 20... Rfd8 {[%clk
0:01:13]} 21. Rfe1 {[%clk 0:02:41.3]} 21... Bb4 {[%clk 0:01:11.8]} 22. Re4
{[%clk 0:02:39.3]} 22... Bc5 {[%clk 0:01:07.3]} 23. Rae1 {[%clk 0:02:37.9]}
23... Kf7 {[%clk 0:01:06.3]} 24. g4 {[%clk 0:02:35.7]} 24... Rac8 {[%clk
0:01:01]} 25. Re6 {[%clk 0:02:28.4]} 25... Rd5 {[%clk 0:00:53.9]} 26. R1e4
{[%clk 0:02:26.2]} 26... Rcd8 {[%clk 0:00:48.2]} 27. h4 {[%clk 0:02:24.1]} 27...
Bb6 {[%clk 0:00:30.8]} 28. Kg3 {[%clk 0:02:20]} 28... R8d7 {[%clk 0:00:22.8]}
29. Re8 {[%clk 0:02:19.5]} 29... Bc5 {[%clk 0:00:17.7]} 30. Rb8 {[%clk
0:02:18.4]} 30... b6 {[%clk 0:00:18]} 31. f4 {[%clk 0:02:18.2]} 31... R5d6
{[%clk 0:00:16.6]} 32. f5 {[%clk 0:02:17.7]} 32... Re7 {[%clk 0:00:16.4]} 33.
Kf3 {[%clk 0:02:17.3]} 33... Rxe4 {[%clk 0:00:15.8]} 34. Kxe4 {[%clk 0:02:18]}
34... Rd7 {[%clk 0:00:16.3]} 35. Rc8 {[%clk 0:02:16.8]} 35... Ke7 {[%clk
0:00:16]} 36. Rh8 {[%clk 0:02:15.1]} 36... h6 {[%clk 0:00:14.9]} 37. Bc1 {[%clk
0:02:13.7]} 37... Kd6 {[%clk 0:00:14.6]} 38. Bf4+ {[%clk 0:02:14]} 38... Ke7
{[%clk 0:00:14.4]} 39. Rc8 {[%clk 0:02:13.1]} 39... Bd6 {[%clk 0:00:14.3]} 40.
Bxd6+ {[%clk 0:02:10.5]} 40... Kxd6 {[%clk 0:00:11.9]} 41. Kxd4 {[%clk
0:02:10.4]} 41... Ke7+ {[%clk 0:00:12.5]} 42. Ke4 {[%clk 0:02:09.3]} 42... Kf7
{[%clk 0:00:12.7]} 43. c4 {[%clk 0:02:07.9]} 43... Ke7 {[%clk 0:00:11.7]} 44. d4
{[%clk 0:02:08]} 44... Kd6 {[%clk 0:00:11.9]} 45. Re8 {[%clk 0:02:06.8]} 45...
Rf7 {[%clk 0:00:09.5]} 46. Re6+ {[%clk 0:02:04.6]} 46... Kd7 {[%clk 0:00:09.6]}
47. c5 {[%clk 0:02:05]} 47... bxc5 {[%clk 0:00:08.9]} 48. dxc5 {[%clk
0:02:05.3]} 48... Rf8 {[%clk 0:00:09.3]} 49. Ra6 {[%clk 0:02:04.6]} 49... Re8+
{[%clk 0:00:08.2]} 50. Kd4 {[%clk 0:02:04.9]} 50... Re1 {[%clk 0:00:07.8]} 51.
Rxa5 {[%clk 0:02:05.3]} 51... Rd1+ {[%clk 0:00:07.5]} 52. Ke3 {[%clk 0:02:03.7]}
52... Rc1 {[%clk 0:00:05.7]} 53. c6+ {[%clk 0:02:03.8]} 53... Kd6 {[%clk
0:00:04.4]} 54. Ra8 {[%clk 0:02:04.4]} 54... Rc3+ {[%clk 0:00:04.5]} 55. Kd4
{[%clk 0:02:03.7]} 55... Rg3 {[%clk 0:00:04.3]} 56. Rd8+ {[%clk 0:02:03.7]}
56... Ke7 {[%clk 0:00:04.5]} 57. Rd7+ {[%clk 0:02:04.5]} 57... Ke8 {[%clk
0:00:05.1]} 58. Rxc7 {[%clk 0:02:04.9]} 58... Rxg4+ {[%clk 0:00:05.7]} 59. Kd5
{[%clk 0:02:05.5]} 59... Rxa4 {[%clk 0:00:06]} 60. b6 {[%clk 0:02:05.9]} 60...
Ra1 {[%clk 0:00:05]} 61. b7 {[%clk 0:02:05.9]} 61... Rd1+ {[%clk 0:00:05.6]} 62.
Kc5 {[%clk 0:02:06.2]} 62... Rc1+ {[%clk 0:00:04.1]} 63. Kd4 {[%clk 0:02:06.5]}
63... Rd1+ {[%clk 0:00:04.3]} 64. Ke4 {[%clk 0:02:07]} 64... Rd8 {[%clk
0:00:03.7]} 65. Rc8 {[%clk 0:02:06.8]} 1-0

[Event "Early-Titled-Tuesday-Blitz-March-05-2024"]
[Site "Chess.com"]
[Date "2024.03.05"]
[Round "9"]
[White "wild3000"]
[Black "eagleclaw07"]
[Result "0-1"]
[WhiteElo "2492"]
[BlackElo "2819"]
[TimeControl "180+1"]
[EndTime "9:45:49 PST"]
[Termination "eagleclaw07 won by resignation"]

1. d4 {[%clk 0:02:30.6]} 1... Nc6 {[%clk 0:03:00.9]} 2. Nf3 {[%clk 0:02:30]}
2... d6 {[%clk 0:03:01.8]} 3. e4 {[%clk 0:02:29.2]} 3... e5 {[%clk 0:03:02.5]}
4. dxe5 {[%clk 0:02:28.7]} 4... Nxe5 {[%clk 0:03:00.8]} 5. Nxe5 {[%clk 0:02:28]}
5... dxe5 {[%clk 0:03:01.7]} 6. Qxd8+ {[%clk 0:02:28]} 6... Kxd8 {[%clk
0:03:02.6]} 7. Bd3 {[%clk 0:02:27.4]} 7... c6 {[%clk 0:03:02.1]} 8. O-O {[%clk
0:02:27.3]} 8... Kc7 {[%clk 0:03:01.9]} 9. f4 {[%clk 0:02:21.3]} 9... Bc5+
{[%clk 0:03:00.8]} 10. Kh1 {[%clk 0:02:20.9]} 10... Nf6 {[%clk 0:02:56.7]} 11.
Nc3 {[%clk 0:01:02.9]} 11... Ng4 {[%clk 0:02:47.5]} 12. Nd1 {[%clk 0:01:02.8]}
12... f6 {[%clk 0:02:40.1]} 13. h3 {[%clk 0:00:58.5]} 13... h5 {[%clk
0:02:33.8]} 14. fxe5 {[%clk 0:00:54.9]} 14... Nxe5 {[%clk 0:02:33.6]} 15. Bf4
{[%clk 0:00:54.1]} 15... Bd6 {[%clk 0:02:32.5]} 16. Ne3 {[%clk 0:00:46.4]} 16...
Be6 {[%clk 0:02:31.3]} 17. b3 {[%clk 0:00:41.1]} 17... Rad8 {[%clk 0:02:31.3]}
18. Rad1 {[%clk 0:00:40.4]} 18... Rd7 {[%clk 0:02:27.7]} 19. Nf5 {[%clk
0:00:39.4]} 19... Bxf5 {[%clk 0:02:27.2]} 20. exf5 {[%clk 0:00:39.4]} 20... Nxd3
{[%clk 0:02:25.6]} 21. Rxd3 {[%clk 0:00:37.9]} 21... Bxf4 {[%clk 0:02:21.6]} 22.
Rxd7+ {[%clk 0:00:37.5]} 22... Kxd7 {[%clk 0:02:22.5]} 23. Rxf4 {[%clk
0:00:37.9]} 23... Re8 {[%clk 0:02:23.1]} 24. Rh4 {[%clk 0:00:36.1]} 24... Re2
{[%clk 0:02:18.9]} 25. Rxh5 {[%clk 0:00:35.7]} 25... Re7 {[%clk 0:02:17.3]} 26.
Rh4 {[%clk 0:00:32.2]} 26... Re2 {[%clk 0:02:17.3]} 27. Rh7 {[%clk 0:00:31.1]}
27... Re7 {[%clk 0:02:09.9]} 28. Rh4 {[%clk 0:00:30.3]} 28... Ke8 {[%clk
0:02:08.4]} 29. Rc4 {[%clk 0:00:25.9]} 29... Re5 {[%clk 0:02:03.4]} 30. g4
{[%clk 0:00:21.7]} 30... Re2 {[%clk 0:01:58.3]} 31. Kg1 {[%clk 0:00:20.4]} 31...
Kd7 {[%clk 0:01:55.8]} 32. a4 {[%clk 0:00:20.2]} 32... b6 {[%clk 0:01:54.2]} 33.
h4 {[%clk 0:00:19.7]} 33... c5 {[%clk 0:01:53.5]} 34. Rc3 {[%clk 0:00:16.7]}
34... Kd6 {[%clk 0:01:49.5]} 35. Kf1 {[%clk 0:00:15.5]} 35... Rh2 {[%clk
0:01:48.7]} 36. h5 {[%clk 0:00:15.5]} 36... Ke5 {[%clk 0:01:47.9]} 37. Rc4
{[%clk 0:00:13.4]} 37... Rd2 {[%clk 0:01:43.6]} 38. Ke1 {[%clk 0:00:13.1]} 38...
Rd4 {[%clk 0:01:40.7]} 39. Rxd4 {[%clk 0:00:13.2]} 39... cxd4 {[%clk 0:01:41.6]}
40. Kd2 {[%clk 0:00:11.9]} 40... Kf4 {[%clk 0:01:42.3]} 41. Kd3 {[%clk
0:00:12.2]} 41... Kxg4 {[%clk 0:01:42.8]} 42. Kxd4 {[%clk 0:00:12.8]} 42... Kxf5
{[%clk 0:01:43.2]} 43. c4 {[%clk 0:00:13.1]} 43... a5 {[%clk 0:01:39.9]} 44. b4
{[%clk 0:00:11.8]} 44... axb4 {[%clk 0:01:36.9]} 45. c5 {[%clk 0:00:05]} 45...
bxc5+ {[%clk 0:01:30]} 46. Kxc5 {[%clk 0:00:03.6]} 46... b3 {[%clk 0:01:30]} 47.
a5 {[%clk 0:00:04.5]} 47... b2 {[%clk 0:01:30.3]} 48. a6 {[%clk 0:00:05.4]}
48... b1=Q {[%clk 0:01:30.6]} 49. a7 {[%clk 0:00:06.3]} 49... Qe4 {[%clk
0:01:30.7]} 0-1

[Event "Early-Titled-Tuesday-Blitz-March-05-2024"]
[Site "Chess.com"]
[Date "2024.03.05"]
[Round "9"]
[White "GlavkonVVS"]
[Black "Harry_Rakkel"]
[Result "0-1"]
[WhiteElo "2554"]
[BlackElo "2690"]
[TimeControl "180+1"]
[EndTime "9:45:50 PST"]
[Termination "Harry_Rakkel won by resignation"]

1. c4 {[%clk 0:03:00.9]} 1... e5 {[%clk 0:02:57.8]} 2. Nc3 {[%clk 0:03:01.1]}
2... Nf6 {[%clk 0:02:56.4]} 3. g3 {[%clk 0:03:01.6]} 3... Bb4 {[%clk 0:02:55.5]}
4. Bg2 {[%clk 0:03:01.3]} 4... O-O {[%clk 0:02:54.7]} 5. Nf3 {[%clk 0:03:01.5]}
5... Re8 {[%clk 0:02:54]} 6. O-O {[%clk 0:03:01.3]} 6... Bxc3 {[%clk 0:02:51.7]}
7. bxc3 {[%clk 0:03:00.9]} 7... d6 {[%clk 0:02:48]} 8. d3 {[%clk 0:03:01.1]}
8... h6 {[%clk 0:02:45.9]} 9. Rb1 {[%clk 0:03:01.2]} 9... Nbd7 {[%clk
0:02:41.3]} 10. Nh4 {[%clk 0:02:57.6]} 10... Nc5 {[%clk 0:02:35.5]} 11. e4
{[%clk 0:02:44.9]} 11... Qd7 {[%clk 0:02:08.6]} 12. Nf5 {[%clk 0:02:43.3]} 12...
Qa4 {[%clk 0:02:04.1]} 13. Qd2 {[%clk 0:02:35]} 13... Bxf5 {[%clk 0:02:00.9]}
14. exf5 {[%clk 0:02:35]} 14... e4 {[%clk 0:01:50.5]} 15. d4 {[%clk 0:02:31.9]}
15... Nd3 {[%clk 0:01:49.8]} 16. Rxb7 {[%clk 0:02:28.3]} 16... Qxc4 {[%clk
0:01:46]} 17. h3 {[%clk 0:02:15.3]} 17... Reb8 {[%clk 0:01:40]} 18. Rb3 {[%clk
0:01:58.8]} 18... Rxb3 {[%clk 0:01:24.9]} 19. axb3 {[%clk 0:01:58.1]} 19... Qxb3
{[%clk 0:01:25.5]} 20. Bxe4 {[%clk 0:01:58.6]} 20... Nxe4 {[%clk 0:01:25.1]} 21.
Qxd3 {[%clk 0:01:58.9]} 21... d5 {[%clk 0:01:23.5]} 22. Bf4 {[%clk 0:01:55]}
22... a5 {[%clk 0:01:17.2]} 23. Rb1 {[%clk 0:01:51.4]} 23... Qxc3 {[%clk
0:01:14.2]} 24. Qb5 {[%clk 0:01:49.9]} 24... c6 {[%clk 0:01:06.6]} 25. Qb7
{[%clk 0:01:49.1]} 25... Rf8 {[%clk 0:01:05.2]} 26. Rc1 {[%clk 0:01:42.2]} 26...
Qxd4 {[%clk 0:00:53.3]} 27. Be3 {[%clk 0:01:42.3]} 27... Qe5 {[%clk 0:00:53.5]}
28. Rxc6 {[%clk 0:01:35.6]} 28... Nxg3 {[%clk 0:00:47.8]} 29. Rc8 {[%clk
0:01:35]} 29... Rxc8 {[%clk 0:00:38.1]} 30. Qxc8+ {[%clk 0:01:34.4]} 30... Kh7
{[%clk 0:00:38.2]} 31. f6 {[%clk 0:01:19.9]} 31... Nf5 {[%clk 0:00:29.9]} 32.
Bc5 {[%clk 0:00:47.4]} 32... Qxf6 {[%clk 0:00:27.3]} 33. Qa8 {[%clk 0:00:41]}
33... Qg5+ {[%clk 0:00:25]} 34. Kh2 {[%clk 0:00:36.4]} 34... Qf4+ {[%clk
0:00:24.6]} 35. Kg1 {[%clk 0:00:36]} 35... Qc1+ {[%clk 0:00:23.9]} 0-1

[Event "Early-Titled-Tuesday-Blitz-March-05-2024"]
[Site "Chess.com"]
[Date "2024.03.05"]
[Round "9"]
[White "Ducke13"]
[Black "Manukyan_Artak"]
[Result "1-0"]
[WhiteElo "2387"]
[BlackElo "2513"]
[TimeControl "180+1"]
[EndTime "9:45:52 PST"]
[Termination "Ducke13 won by resignation"]

1. Nf3 {[%clk 0:02:55]} 1... g6 {[%clk 0:02:57.7]} 2. c4 {[%clk 0:02:53.3]} 2...
Bg7 {[%clk 0:02:58.2]} 3. Nc3 {[%clk 0:02:53.9]} 3... d6 {[%clk 0:02:58.9]} 4.
g3 {[%clk 0:02:49.3]} 4... Nf6 {[%clk 0:02:59.8]} 5. Bg2 {[%clk 0:02:47.9]} 5...
O-O {[%clk 0:03:00.7]} 6. d4 {[%clk 0:02:45.9]} 6... c5 {[%clk 0:03:00.6]} 7.
O-O {[%clk 0:02:32.1]} 7... Nc6 {[%clk 0:03:00.1]} 8. d5 {[%clk 0:02:31.8]} 8...
Ne5 {[%clk 0:02:55.1]} 9. Nxe5 {[%clk 0:02:31.2]} 9... dxe5 {[%clk 0:02:56]} 10.
h3 {[%clk 0:02:17.6]} 10... Ne8 {[%clk 0:02:51.9]} 11. Be3 {[%clk 0:02:16.8]}
11... b6 {[%clk 0:02:50.5]} 12. d6 {[%clk 0:02:14.9]} 12... Rb8 {[%clk
0:02:41.3]} 13. dxe7 {[%clk 0:02:11]} 13... Qxe7 {[%clk 0:02:41.5]} 14. Nd5
{[%clk 0:02:11.9]} 14... Qd8 {[%clk 0:02:34.2]} 15. Qd2 {[%clk 0:02:09.9]} 15...
f6 {[%clk 0:02:13.2]} 16. Rad1 {[%clk 0:02:07]} 16... Be6 {[%clk 0:02:09.2]} 17.
Bh6 {[%clk 0:02:05]} 17... Nc7 {[%clk 0:02:01.3]} 18. Qc1 {[%clk 0:01:34.7]}
18... Bxd5 {[%clk 0:01:57.7]} 19. Bxd5+ {[%clk 0:01:32.6]} 19... Nxd5 {[%clk
0:01:57.5]} 20. Rxd5 {[%clk 0:01:33.5]} 20... Qe7 {[%clk 0:01:57.8]} 21. Rfd1
{[%clk 0:01:32.8]} 21... Rfd8 {[%clk 0:01:53.7]} 22. Bxg7 {[%clk 0:01:32.5]}
22... Kxg7 {[%clk 0:01:49.8]} 23. h4 {[%clk 0:01:14.6]} 23... Rxd5 {[%clk
0:01:47.5]} 24. Rxd5 {[%clk 0:01:13.9]} 24... Rd8 {[%clk 0:01:47.8]} 25. Qd2
{[%clk 0:01:14.4]} 25... Rxd5 {[%clk 0:01:46.9]} 26. Qxd5 {[%clk 0:01:15.3]}
26... Qf7 {[%clk 0:01:45.7]} 27. e4 {[%clk 0:01:08.2]} 27... h5 {[%clk 0:01:45]}
28. a4 {[%clk 0:01:05.5]} 28... Qe7 {[%clk 0:01:44.3]} 29. Kg2 {[%clk
0:01:01.6]} 29... f5 {[%clk 0:01:44.7]} 30. exf5 {[%clk 0:00:54.3]} 30... gxf5
{[%clk 0:01:45.6]} 31. Kh3 {[%clk 0:00:46.3]} 31... Kf6 {[%clk 0:01:40.1]} 32.
Qd2 {[%clk 0:00:42.9]} 32... Kg6 {[%clk 0:01:38.5]} 33. Qd5 {[%clk 0:00:39.6]}
33... e4 {[%clk 0:01:32.4]} 34. Kg2 {[%clk 0:00:33.5]} 34... Qf6 {[%clk
0:01:27.8]} 35. b3 {[%clk 0:00:29.1]} 35... Qc3 {[%clk 0:01:15.8]} 36. Qg8+
{[%clk 0:00:28.8]} 36... Qg7 {[%clk 0:01:11.3]} 37. Qe8+ {[%clk 0:00:26.4]}
37... Qf7 {[%clk 0:01:10.7]} 38. Qd8 {[%clk 0:00:23.9]} 38... Qb7 {[%clk
0:01:04.5]} 39. Qg5+ {[%clk 0:00:22.5]} 39... Kf7 {[%clk 0:01:02.6]} 40. Qxf5+
{[%clk 0:00:22.2]} 40... Ke7 {[%clk 0:01:02]} 41. Qe5+ {[%clk 0:00:21.5]} 41...
Kf8 {[%clk 0:01:00.6]} 42. Qh8+ {[%clk 0:00:17.2]} 1-0

[Event "Early-Titled-Tuesday-Blitz-March-05-2024"]
[Site "Chess.com"]
[Date "2024.03.05"]
[Round "9"]
[White "Miguelito"]
[Black "rnanjo"]
[Result "1-0"]
[WhiteElo "2809"]
[BlackElo "2565"]
[TimeControl "180+1"]
[EndTime "9:45:54 PST"]
[Termination "Miguelito won by resignation"]

1. Nf3 {[%clk 0:03:00.9]} 1... d5 {[%clk 0:02:59.4]} 2. e3 {[%clk 0:03:01.8]}
2... Nf6 {[%clk 0:02:58.8]} 3. b3 {[%clk 0:03:02]} 3... Bf5 {[%clk 0:02:53.7]}
4. Be2 {[%clk 0:03:02.1]} 4... e6 {[%clk 0:02:53.6]} 5. Nh4 {[%clk 0:03:01.9]}
5... Bg6 {[%clk 0:02:51.3]} 6. d3 {[%clk 0:03:00.8]} 6... c5 {[%clk 0:02:48.6]}
7. Nd2 {[%clk 0:03:00.3]} 7... Nc6 {[%clk 0:02:48.5]} 8. Bb2 {[%clk 0:03:00.8]}
8... Bd6 {[%clk 0:02:48.3]} 9. g3 {[%clk 0:02:59.2]} 9... Qe7 {[%clk 0:02:27.8]}
10. Bf3 {[%clk 0:02:57.5]} 10... O-O {[%clk 0:02:13.1]} 11. Nxg6 {[%clk
0:02:53.5]} 11... fxg6 {[%clk 0:02:12.3]} 12. O-O {[%clk 0:02:46.9]} 12... Be5
{[%clk 0:02:02.4]} 13. c3 {[%clk 0:02:44.6]} 13... Bd6 {[%clk 0:02:00.8]} 14. c4
{[%clk 0:02:42.5]} 14... Ne5 {[%clk 0:01:49]} 15. Qe2 {[%clk 0:02:24.4]} 15...
Nxf3+ {[%clk 0:01:37.1]} 16. Nxf3 {[%clk 0:02:25.3]} 16... Rae8 {[%clk
0:01:23.9]} 17. e4 {[%clk 0:02:23.4]} 17... Bc7 {[%clk 0:01:14.7]} 18. exd5
{[%clk 0:02:09.5]} 18... exd5 {[%clk 0:01:15.6]} 19. Qxe7 {[%clk 0:02:10.1]}
19... Rxe7 {[%clk 0:01:15.6]} 20. Rae1 {[%clk 0:02:11]} 20... Rfe8 {[%clk
0:01:14.1]} 21. Rxe7 {[%clk 0:02:10.9]} 21... Rxe7 {[%clk 0:01:14.1]} 22. Re1
{[%clk 0:02:10.4]} 22... Rxe1+ {[%clk 0:01:13.3]} 23. Nxe1 {[%clk 0:02:10.7]}
23... dxc4 {[%clk 0:01:04.8]} 24. dxc4 {[%clk 0:02:09.2]} 24... Kf7 {[%clk
0:00:57.9]} 25. Nd3 {[%clk 0:02:08.9]} 25... Nd7 {[%clk 0:00:58.2]} 26. Kg2
{[%clk 0:02:06.5]} 26... Bd6 {[%clk 0:00:58.1]} 27. f4 {[%clk 0:02:02.8]} 27...
h6 {[%clk 0:00:53.8]} 28. Kf3 {[%clk 0:02:02.7]} 28... g5 {[%clk 0:00:53.3]} 29.
fxg5 {[%clk 0:01:54.5]} 29... hxg5 {[%clk 0:00:54.2]} 30. h3 {[%clk 0:01:55]}
30... b6 {[%clk 0:00:50.6]} 31. g4 {[%clk 0:01:53.9]} 31... Nf6 {[%clk
0:00:48.2]} 32. Nf2 {[%clk 0:01:39.1]} 32... Be7 {[%clk 0:00:44.4]} 33. Ne4
{[%clk 0:01:35.1]} 33... Kg6 {[%clk 0:00:44.5]} 34. Be5 {[%clk 0:01:31.1]} 34...
Nd7 {[%clk 0:00:37.8]} 35. Bc7 {[%clk 0:01:28.5]} 35... Bf6 {[%clk 0:00:35]} 36.
Nxf6 {[%clk 0:01:22.3]} 36... gxf6 {[%clk 0:00:34.9]} 37. Ke4 {[%clk 0:01:22]}
37... a6 {[%clk 0:00:31.4]} 38. Kd5 {[%clk 0:01:21.7]} 38... f5 {[%clk
0:00:31.1]} 39. gxf5+ {[%clk 0:01:20.1]} 39... Kxf5 {[%clk 0:00:32]} 40. Kc6
{[%clk 0:01:19.7]} 40... Ke6 {[%clk 0:00:31.3]} 41. Bxb6 {[%clk 0:01:20]} 41...
Ne5+ {[%clk 0:00:30.9]} 42. Kxc5 {[%clk 0:01:19.6]} 42... Nd3+ {[%clk
0:00:26.6]} 43. Kc6 {[%clk 0:01:19.3]} 43... Nf4 {[%clk 0:00:26.8]} 44. c5
{[%clk 0:01:16.3]} 44... Nxh3 {[%clk 0:00:26.8]} 45. Kb7 {[%clk 0:01:16.9]}
45... Nf4 {[%clk 0:00:23.2]} 46. c6 {[%clk 0:01:17.1]} 46... Nd5 {[%clk
0:00:23.4]} 47. c7 {[%clk 0:01:17.6]} 47... Ne7 {[%clk 0:00:16.8]} 48. c8=Q+
{[%clk 0:01:14.3]} 48... Nxc8 {[%clk 0:00:16.8]} 49. Kxc8 {[%clk 0:01:15.2]}
49... g4 {[%clk 0:00:16.7]} 50. Kb7 {[%clk 0:01:15.5]} 50... Kd5 {[%clk
0:00:16]} 51. Kxa6 {[%clk 0:01:15.7]} 1-0

[Event "Early-Titled-Tuesday-Blitz-March-05-2024"]
[Site "Chess.com"]
[Date "2024.03.05"]
[Round "9"]
[White "HansOnTwitch"]
[Black "Iball95"]
[Result "1-0"]
[WhiteElo "3114"]
[BlackElo "2910"]
[TimeControl "180+1"]
[EndTime "9:45:58 PST"]
[Termination "HansOnTwitch won by checkmate"]

1. e4 {[%clk 0:03:00.9]} 1... c5 {[%clk 0:02:59.8]} 2. Nf3 {[%clk 0:02:57.8]}
2... e6 {[%clk 0:03:00.4]} 3. b3 {[%clk 0:02:55.8]} 3... Nc6 {[%clk 0:02:59.6]}
4. Bb2 {[%clk 0:02:56]} 4... a6 {[%clk 0:02:59.8]} 5. c4 {[%clk 0:02:55.9]} 5...
Nf6 {[%clk 0:02:58.8]} 6. e5 {[%clk 0:02:55.9]} 6... Ng4 {[%clk 0:02:59.1]} 7.
g3 {[%clk 0:02:56.4]} 7... d6 {[%clk 0:02:48.5]} 8. exd6 {[%clk 0:02:54.3]} 8...
Nf6 {[%clk 0:02:39.4]} 9. Bg2 {[%clk 0:02:49.9]} 9... Bxd6 {[%clk 0:02:40]} 10.
O-O {[%clk 0:02:50.3]} 10... O-O {[%clk 0:02:40.5]} 11. d4 {[%clk 0:02:50.6]}
11... cxd4 {[%clk 0:02:41.4]} 12. Nxd4 {[%clk 0:02:31.5]} 12... Be5 {[%clk
0:02:12.5]} 13. Bxc6 {[%clk 0:02:30.7]} 13... bxc6 {[%clk 0:02:11.5]} 14. Re1
{[%clk 0:02:30.8]} 14... Qc7 {[%clk 0:01:54.4]} 15. Nxe6 {[%clk 0:02:25.8]}
15... Bxe6 {[%clk 0:01:45]} 16. Bxe5 {[%clk 0:02:24.5]} 16... Qa5 {[%clk
0:01:40.3]} 17. Qd2 {[%clk 0:02:20.9]} 17... Qxd2 {[%clk 0:01:36.3]} 18. Nxd2
{[%clk 0:02:21.8]} 18... Nd7 {[%clk 0:01:34.3]} 19. Bd6 {[%clk 0:02:16.3]} 19...
Rfd8 {[%clk 0:01:34.3]} 20. Nf3 {[%clk 0:02:16.4]} 20... c5 {[%clk 0:01:26.5]}
21. Rad1 {[%clk 0:02:10.9]} 21... h6 {[%clk 0:01:07.2]} 22. Rxe6 {[%clk
0:02:08.6]} 22... fxe6 {[%clk 0:01:08.1]} 23. Bc7 {[%clk 0:02:08.9]} 23... Rf8
{[%clk 0:01:03.6]} 24. Kg2 {[%clk 0:01:52.8]} 24... Rf7 {[%clk 0:01:02.2]} 25.
Bf4 {[%clk 0:01:46]} 25... Raf8 {[%clk 0:00:55.7]} 26. Bd6 {[%clk 0:01:45.7]}
26... Rc8 {[%clk 0:00:47.2]} 27. h4 {[%clk 0:01:40.5]} 27... a5 {[%clk
0:00:41.1]} 28. a4 {[%clk 0:01:17.9]} 28... Rc6 {[%clk 0:00:40.7]} 29. Rd3
{[%clk 0:01:16.1]} 29... Kh7 {[%clk 0:00:30.5]} 30. Bf4 {[%clk 0:01:15.7]} 30...
Rb6 {[%clk 0:00:27.2]} 31. Bd2 {[%clk 0:01:14.1]} 31... Ra6 {[%clk 0:00:25.1]}
32. Bc3 {[%clk 0:01:14.1]} 32... Kg8 {[%clk 0:00:21.4]} 33. g4 {[%clk
0:01:03.9]} 33... Kf8 {[%clk 0:00:21.3]} 34. g5 {[%clk 0:00:59.7]} 34... hxg5
{[%clk 0:00:08.1]} 35. Nxg5 {[%clk 0:00:56.5]} 35... Re7 {[%clk 0:00:08.3]} 36.
f4 {[%clk 0:00:55.9]} 36... Ke8 {[%clk 0:00:08.3]} 37. Ne4 {[%clk 0:00:54.9]}
37... Rc6 {[%clk 0:00:06]} 38. Bxa5 {[%clk 0:00:52.5]} 38... e5 {[%clk
0:00:05.6]} 39. f5 {[%clk 0:00:50.8]} 39... Nf6 {[%clk 0:00:05.8]} 40. Rd8+
{[%clk 0:00:50.5]} 40... Kf7 {[%clk 0:00:05]} 41. Ng5# {[%clk 0:00:51.4]} 1-0

[Event "Early-Titled-Tuesday-Blitz-March-05-2024"]
[Site "Chess.com"]
[Date "2024.03.05"]
[Round "9"]
[White "StankovicIvan"]
[Black "ClauSanLuis"]
[Result "1-0"]
[WhiteElo "2525"]
[BlackElo "2353"]
[TimeControl "180+1"]
[EndTime "9:46:04 PST"]
[Termination "StankovicIvan won by resignation"]

1. e4 {[%clk 0:03:00.9]} 1... c5 {[%clk 0:02:41.4]} 2. c4 {[%clk 0:02:59.5]}
2... Nc6 {[%clk 0:02:40.1]} 3. Nc3 {[%clk 0:02:59.6]} 3... e5 {[%clk 0:02:34.7]}
4. g3 {[%clk 0:02:59.3]} 4... g6 {[%clk 0:02:34]} 5. Bg2 {[%clk 0:02:59.7]} 5...
Bg7 {[%clk 0:02:34.5]} 6. Nge2 {[%clk 0:03:00.6]} 6... Nge7 {[%clk 0:02:34.5]}
7. d3 {[%clk 0:03:01.2]} 7... h6 {[%clk 0:02:33.4]} 8. O-O {[%clk 0:03:01.2]}
8... O-O {[%clk 0:02:33.4]} 9. Rb1 {[%clk 0:03:01.9]} 9... Rb8 {[%clk 0:02:32]}
10. a3 {[%clk 0:03:01.9]} 10... a6 {[%clk 0:02:32.5]} 11. b4 {[%clk 0:03:01.6]}
11... cxb4 {[%clk 0:02:27.8]} 12. axb4 {[%clk 0:03:02.5]} 12... b5 {[%clk
0:02:28.2]} 13. cxb5 {[%clk 0:02:37.1]} 13... axb5 {[%clk 0:02:27.3]} 14. Be3
{[%clk 0:02:37]} 14... Nd4 {[%clk 0:02:10.8]} 15. Qd2 {[%clk 0:02:36.7]} 15...
Kh7 {[%clk 0:02:09.8]} 16. f4 {[%clk 0:02:35.1]} 16... Nxe2+ {[%clk 0:01:57.3]}
17. Nxe2 {[%clk 0:02:32]} 17... exf4 {[%clk 0:01:57.5]} 18. Bxf4 {[%clk
0:02:24.5]} 18... Rb6 {[%clk 0:01:52.4]} 19. Rbc1 {[%clk 0:02:13.8]} 19... Rc6
{[%clk 0:01:38]} 20. d4 {[%clk 0:02:07.4]} 20... Bb7 {[%clk 0:01:35.5]} 21. d5
{[%clk 0:01:53.7]} 21... Rxc1 {[%clk 0:01:33.4]} 22. Rxc1 {[%clk 0:01:51.5]}
22... f5 {[%clk 0:01:29.9]} 23. e5 {[%clk 0:01:40.5]} 23... g5 {[%clk
0:01:29.3]} 24. Be3 {[%clk 0:01:19.6]} 24... Bxe5 {[%clk 0:01:28.7]} 25. d6
{[%clk 0:01:19.4]} 25... Nc6 {[%clk 0:01:25.4]} 26. Qd5 {[%clk 0:01:15.2]} 26...
Qf6 {[%clk 0:00:53.1]} 27. Qxb5 {[%clk 0:01:11.4]} 27... Nd4 {[%clk 0:00:41.5]}
28. Qd3 {[%clk 0:00:40.8]} 28... Nxe2+ {[%clk 0:00:38.3]} 29. Qxe2 {[%clk
0:00:40.7]} 29... Bxg2 {[%clk 0:00:38.9]} 30. Qxg2 {[%clk 0:00:35.5]} 30... f4
{[%clk 0:00:38.6]} 31. Qe4+ {[%clk 0:00:35.6]} 31... Kh8 {[%clk 0:00:35.4]} 32.
Rf1 {[%clk 0:00:31.9]} 32... Qxd6 {[%clk 0:00:33.4]} 33. Bc5 {[%clk 0:00:31.4]}
33... Qg6 {[%clk 0:00:17.7]} 34. Qxg6 {[%clk 0:00:30.3]} 1-0